fUSD/lending_fUSD_20260615
["ID","MTS","AMOUNT","RATE_DAILY","PERIOD"]
[425097391,1781491843000,-151.0,0.000249,2]
[425097396,1781491843000,-1113.37,0.000249,7]
[425097397,1781491843000,-364.868956,0.000249,2]
[425097394,1781491843000,-361.328383,0.000249,2]
[425097395,1781491843000,-361.328383,0.000249,2]
[425097393,1781491843000,-361.328383,0.000249,2]
[425097392,1781491843000,-361.328383,0.000249,2]
[425097385,1781491843000,-151.0,0.000249,2]
[425097389,1781491843000,-151.0,0.000249,2]
[425097387,1781491843000,-151.0,0.000249,2]
[425097388,1781491843000,-151.0,0.000249,2]
[425097386,1781491843000,-151.0,0.000249,2]
[425097384,1781491843000,-659881.92594844,0.000249,2]
[425097383,1781491843000,-495.0,0.0002,5]
[425097399,1781491843000,-364.868956,0.000249,2]
[425097390,1781491843000,-151.0,0.000249,2]
[425097401,1781491843000,-151.0,0.000249,2]
[425097398,1781491843000,-364.868956,0.000249,2]
[425097402,1781491843000,-361.700659,0.000249,2]
[425097400,1781491843000,-364.868956,0.000249,2]
[425097418,1781491843000,-500.0,0.000249,2]
[425097419,1781491843000,-500.0,0.000249,2]
[425097416,1781491843000,-500.0,0.000249,2]
[425097413,1781491843000,-500.0,0.000249,2]
[425097415,1781491843000,-500.0,0.000249,2]
[425097414,1781491843000,-500.0,0.000249,2]
[425097417,1781491843000,-500.0,0.000249,2]
[425097411,1781491843000,-500.0,0.000249,2]
[425097409,1781491843000,-582.64011,0.000249,2]
[425097407,1781491843000,-582.64011,0.000249,2]
[425097408,1781491843000,-582.64011,0.000249,2]
[425097405,1781491843000,-361.700659,0.000249,2]
[425097406,1781491843000,-582.64011,0.000249,2]
[425097403,1781491843000,-361.700659,0.000249,2]
[425097410,1781491843000,-500.0,0.000249,2]
[425097404,1781491843000,-361.700659,0.000249,2]
[425097456,1781491844000,-500.0,0.000249,2]
[425097458,1781491844000,-500.0,0.000249,2]
[425097457,1781491844000,-500.0,0.000249,2]
[425097455,1781491844000,-500.0,0.000249,2]
[425097453,1781491844000,-500.0,0.000249,2]
[425097452,1781491844000,-500.0,0.000249,2]
[425097454,1781491844000,-500.0,0.000249,2]
[425097447,1781491844000,-500.0,0.000249,2]
[425097420,1781491844000,-500.0,0.000249,2]
[425097451,1781491844000,-500.0,0.000249,2]
[425097460,1781491844000,-500.0,0.000249,2]
[425097469,1781491844000,-265.422772,0.000249,2]
[425097463,1781491844000,-151.0,0.000249,2]
[425097462,1781491844000,-151.0,0.000249,2]
[425097461,1781491844000,-500.0,0.000249,2]
[425097464,1781491844000,-151.0,0.000249,2]
[425097465,1781491844000,-265.422772,0.000249,2]
[425097466,1781491844000,-151.0,0.000249,2]
[425097446,1781491844000,-500.0,0.000249,2]
[425097467,1781491844000,-265.422772,0.000249,2]
[425097475,1781491844000,-500.0,0.000249,2]
[425097473,1781491844000,-500.0,0.000249,2]
[425097472,1781491844000,-500.0,0.000249,2]
[425097459,1781491844000,-500.0,0.000249,2]
[425097450,1781491844000,-500.0,0.000249,2]
[425097442,1781491844000,-500.0,0.000249,2]
[425097468,1781491844000,-265.422772,0.000249,2]
[425097422,1781491844000,-500.0,0.000249,2]
[425097421,1781491844000,-500.0,0.000249,2]
[425097423,1781491844000,-500.0,0.000249,2]
[425097424,1781491844000,-500.0,0.000249,2]
[425097426,1781491844000,-500.0,0.000249,2]
[425097427,1781491844000,-500.0,0.000249,2]
[425097430,1781491844000,-500.0,0.000249,2]
[425097425,1781491844000,-500.0,0.000249,2]
[425097431,1781491844000,-500.0,0.000249,2]
[425097429,1781491844000,-500.0,0.000249,2]
[425097433,1781491844000,-500.0,0.000249,2]
[425097449,1781491844000,-500.0,0.000249,2]
[425097432,1781491844000,-500.0,0.000249,2]
[425097436,1781491844000,-500.0,0.000249,2]
[425097440,1781491844000,-500.0,0.000249,2]
[425097439,1781491844000,-500.0,0.000249,2]
[425097435,1781491844000,-500.0,0.000249,2]
[425097438,1781491844000,-500.0,0.000249,2]
[425097441,1781491844000,-500.0,0.000249,2]
[425097437,1781491844000,-500.0,0.000249,2]
[425097443,1781491844000,-500.0,0.000249,2]
[425097444,1781491844000,-500.0,0.000249,2]
[425097445,1781491844000,-500.0,0.000249,2]
[425097448,1781491844000,-500.0,0.000249,2]
[425097434,1781491844000,-500.0,0.000249,2]
[425097471,1781491844000,-500.0,0.000249,2]
[425097489,1781491844000,-1058.597648,0.000249,2]
[425097470,1781491844000,-500.0,0.000249,2]
[425097502,1781491844000,-500.0,0.00024941,2]
[425097506,1781491844000,-500.0,0.00024941,2]
[425097507,1781491844000,-500.0,0.00024941,2]
[425097509,1781491844000,-500.0,0.00024941,2]
[425097510,1781491844000,-500.0,0.00024941,2]
[425097508,1781491844000,-500.0,0.00024941,2]
[425097512,1781491844000,-500.0,0.00024941,2]
[425097513,1781491844000,-500.0,0.00024941,2]
[425097516,1781491844000,-500.0,0.00024941,2]
[425097515,1781491844000,-500.0,0.00024941,2]
[425097517,1781491844000,-500.0,0.00024941,2]
[425097519,1781491844000,-500.0,0.00024941,2]
[425097520,1781491844000,-500.0,0.00024941,2]
[425097518,1781491844000,-500.0,0.00024941,2]
[425097514,1781491844000,-500.0,0.00024941,2]
[425097522,1781491844000,-500.0,0.00024941,2]
[425097521,1781491844000,-500.0,0.00024941,2]
[425097523,1781491844000,-500.0,0.00024941,2]
[425097525,1781491844000,-500.0,0.00024941,2]
[425097524,1781491844000,-500.0,0.00024941,2]
[425097526,1781491844000,-500.0,0.00024941,2]
[425097527,1781491844000,-500.0,0.00024941,2]
[425097476,1781491844000,-500.0,0.000249,2]
[425097511,1781491844000,-500.0,0.00024941,2]
[425097505,1781491844000,-500.0,0.00024941,2]
[425097501,1781491844000,-500.0,0.00024941,2]
[425097503,1781491844000,-500.0,0.00024941,2]
[425097504,1781491844000,-500.0,0.00024941,2]
[425097474,1781491844000,-500.0,0.000249,2]
[425097477,1781491844000,-500.0,0.000249,2]
[425097478,1781491844000,-500.0,0.000249,2]
[425097481,1781491844000,-500.0,0.000249,2]
[425097480,1781491844000,-500.0,0.000249,2]
[425097487,1781491844000,-1058.597648,0.000249,2]
[425097485,1781491844000,-300.0,0.000249,7]
[425097482,1781491844000,-508.204373,0.000249,2]
[425097483,1781491844000,-151.0,0.000249,2]
[425097486,1781491844000,-1058.597648,0.000249,2]
[425097484,1781491844000,-151.0,0.000249,2]
[425097479,1781491844000,-500.0,0.000249,2]
[425097492,1781491844000,-2562.18806,0.000249,2]
[425097488,1781491844000,-1058.597648,0.000249,2]
[425097500,1781491844000,-500.0,0.00024941,2]
[425097499,1781491844000,-500.0,0.00024941,2]
[425097498,1781491844000,-500.0,0.00024941,2]
[425097493,1781491844000,-2562.18806,0.000249,2]
[425097497,1781491844000,-500.0,0.00024941,2]
[425097495,1781491844000,-459.49374292,0.0002492,10]
[425097494,1781491844000,-193.0,0.00024911,2]
[425097496,1781491844000,-500.0,0.00024941,2]
[425097490,1781491844000,-2562.18806,0.000249,2]
[425097491,1781491844000,-2562.18806,0.000249,2]
[425097543,1781491845000,-3120.7497032,0.00024942,2]
[425097536,1781491845000,-500.0,0.00024941,2]
[425097537,1781491845000,-500.0,0.00024941,2]
[425097535,1781491845000,-500.0,0.00024941,2]
[425097542,1781491845000,-249890.0731368,0.00024942,2]
[425097539,1781491845000,-500.0,0.00024941,2]
[425097540,1781491845000,-500.0,0.00024941,2]
[425097528,1781491845000,-500.0,0.00024941,2]
[425097534,1781491845000,-500.0,0.00024941,2]
[425097531,1781491845000,-500.0,0.00024941,2]
[425097530,1781491845000,-500.0,0.00024941,2]
[425097532,1781491845000,-500.0,0.00024941,2]
[425097529,1781491845000,-500.0,0.00024941,2]
[425097541,1781491845000,-500.0,0.00024941,2]
[425097538,1781491845000,-500.0,0.00024941,2]
[425097544,1781491845000,-1444.8677703,0.00024942,2]
[425097533,1781491845000,-500.0,0.00024941,2]
[425097547,1781491845000,-3637.1756856,0.00024942,2]
[425097561,1781491845000,-495.0,0.00021,7]
[425097562,1781491845000,-130.76,0.00025,2]
[425097560,1781491845000,-473.87393716,0.00025,2]
[425097557,1781491845000,-300.0,0.00025,3]
[425097558,1781491845000,-216.56351455,0.00025,2]
[425097546,1781491845000,-115559.0690515,0.00024942,2]
[425097559,1781491845000,-190.49450653,0.00025,2]
[425097556,1781491845000,-151.0,0.00025,2]
[425097555,1781491845000,-3183.16669854,0.00025,7]
[425097553,1781491845000,-114631.61946283,0.00025,7]
[425097552,1781491845000,-696.7411975,0.0002495,2]
[425097551,1781491845000,-4956.0,0.00024945,3]
[425097550,1781491845000,-1213.648967,0.00024942,2]
[425097548,1781491845000,-38745.9868081,0.00024942,2]
[425097549,1781491845000,-42765.3144609,0.00024942,2]
[425097545,1781491845000,-370862.6642207,0.00024942,2]
[425097554,1781491845000,-29452.62355319,0.00025,7]
[425097565,1781491846000,-274.62045874,0.00025,2]
[425097566,1781491846000,-118.20916786,0.00025,2]
[425097564,1781491846000,-70.43095074,0.00025,2]
[425097574,1781491847000,-101.47896907,0.00025,2]
[425097573,1781491847000,-200.0,0.00025,3]
[425097571,1781491847000,-167.5987494,0.00025,2]
[425097572,1781491847000,-400.6173973,0.00025,2]
[425097576,1781491847000,-484.70177881,0.00025,2]
[425097578,1781491847000,-174.05871861,0.00025,2]
[425097575,1781491847000,-281.15634428,0.00025,2]
[425097579,1781491847000,-467.86275993,0.00025,2]
[425097580,1781491847000,-424.48798,0.00025,2]
[425097581,1781491847000,-424.48798,0.00025,2]
[425097577,1781491847000,-59.99561775,0.00025,2]
[425097600,1781491848000,-150.0,0.00025,2]
[425097602,1781491848000,-689.0,0.0002504,5]
[425097604,1781491848000,-377.41193036,0.00025064,60]
[425097605,1781491848000,-206.0,0.00025073,2]
[425097613,1781491848000,-377.41193036,0.000252,60]
[425097612,1781491848000,-150.0,0.00025185,2]
[425097606,1781491848000,-1298.94668592,0.00025097,30]
[425097607,1781491848000,-377.41193036,0.00025132,60]
[425097608,1781491848000,-1298.94668592,0.00025138,30]
[425097610,1781491848000,-150.0,0.00025185,2]
[425097609,1781491848000,-1298.94668592,0.00025178,30]
[425097611,1781491848000,-150.0,0.00025185,2]
[425097615,1781491848000,-1298.94668592,0.00025219,30]
[425097598,1781491848000,-150.0,0.00025,2]
[425097603,1781491848000,-1298.94668592,0.00025057,30]
[425097601,1781491848000,-1298.94668592,0.00025016,30]
[425097582,1781491848000,-424.48798,0.00025,2]
[425097595,1781491848000,-697.23474008,0.00025,2]
[425097620,1781491848000,-215.08112528,0.00025292,2]
[425097586,1781491848000,-282.72038655,0.00025,2]
[425097585,1781491848000,-253.96813112,0.00025,2]
[425097583,1781491848000,-833.85972033,0.00025,2]
[425097584,1781491848000,-833.85972033,0.00025,2]
[425097587,1781491848000,-150.0,0.00025,2]
[425097599,1781491848000,-1951.95755659,0.00025,2]
[425097589,1781491848000,-150.0,0.00025,2]
[425097591,1781491848000,-150.0,0.00025,2]
[425097588,1781491848000,-626.04008423,0.00025,2]
[425097593,1781491848000,-299.08,0.00025,2]
[425097590,1781491848000,-150.0,0.00025,2]
[425097594,1781491848000,-299.08,0.00025,2]
[425097596,1781491848000,-697.23474008,0.00025,2]
[425097592,1781491848000,-150.0,0.00025,2]
[425097617,1781491848000,-1298.94668592,0.00025259,30]
[425097597,1781491848000,-84758.0,0.00025,2]
[425097621,1781491848000,-166.99413287,0.00025293,2]
[425097639,1781491848000,-1298.94668592,0.00025502,60]
[425097637,1781491848000,-1113.37,0.000255,7]
[425097638,1781491848000,-1305.20462618,0.000255,2]
[425097640,1781491848000,-500.0,0.00025548,7]
[425097641,1781491848000,-5528.0,0.000257,3]
[425097645,1781491848000,-151.0,0.00025976,2]
[425097642,1781491848000,-193.0,0.00025733,2]
[425097644,1781491848000,-6717.5,0.00025786,2]
[425097647,1781491848000,-368.19713373,0.00025976,2]
[425097646,1781491848000,-621.78829552,0.00025976,2]
[425097649,1781491848000,-407.28119187,0.00025976,2]
[425097648,1781491848000,-1235.0,0.000249,10]
[425097650,1781491848000,-470.21437661,0.00025978,2]
[425097651,1781491848000,-251.11897888,0.00025978,2]
[425097624,1781491848000,-377.41193036,0.00025337,60]
[425097652,1781491848000,-215.29850388,0.00025978,2]
[425097635,1781491848000,-328.39999384,0.0002545,2]
[425097643,1781491848000,-723.8,0.00025786,2]
[425097632,1781491848000,-290.3986294,0.0002543,2]
[425097618,1781491848000,-162.36833574,0.00025259,30]
[425097636,1781491848000,-1298.94668592,0.00025462,60]
[425097619,1781491848000,-377.41193036,0.00025269,60]
[425097622,1781491848000,-1298.94668592,0.000253,60]
[425097623,1781491848000,-642.65038193,0.00025306,7]
[425097616,1781491848000,-274.77868199,0.00025259,60]
[425097626,1781491848000,-5264.1819,0.00025362,2]
[425097614,1781491848000,-152.0,0.00025204,5]
[425097629,1781491848000,-1298.94668592,0.00025421,60]
[425097633,1781491848000,-2884.75459676,0.0002543,2]
[425097634,1781491848000,-151.0,0.0002543,2]
[425097631,1781491848000,-242.15909246,0.0002543,2]
[425097628,1781491848000,-312.87794798,0.00025417,2]
[425097625,1781491848000,-1298.94668592,0.0002534,60]
[425097630,1781491848000,-470.21437661,0.0002543,2]
[425097627,1781491848000,-1298.94668592,0.00025381,60]
[425097654,1781491849000,-2130.22830023,0.00025978,2]
[425097653,1781491849000,-85.84487481,0.00025978,2]
[425097666,1781491850000,-261.84,0.00026027,7]
[425097670,1781491850000,-3558.0,0.0002619,2]
[425097667,1781491850000,-1505.03,0.00026027,2]
[425097669,1781491850000,-6609.0,0.00026144,10]
[425097672,1781491850000,-631.0,0.0002619,2]
[425097668,1781491850000,-150.0,0.00026028,2]
[425097671,1781491850000,-1275.0,0.0002619,2]
[425097665,1781491850000,-550.0,0.00026,2]
[425097655,1781491850000,-566.0,0.00025,10]
[425097663,1781491850000,-4605.61272194,0.00026,2]
[425097662,1781491850000,-611.89075203,0.0002599,2]
[425097661,1781491850000,-118.13425245,0.00025978,2]
[425097660,1781491850000,-419.0,0.0001719,2]
[425097656,1781491850000,-151.0,0.00025,2]
[425097659,1781491850000,-32.86574755,0.00025978,2]
[425097657,1781491850000,-389.11,0.00025978,2]
[425097674,1781491850000,-3645.0,0.0002619,2]
[425097664,1781491850000,-220.38684195,0.00026,2]
[425097673,1781491850000,-934.0,0.0002619,2]
[425097658,1781491850000,-472.15221661,0.00025978,2]
[425097675,1781491850000,-285.0,0.00026194,7]
[425097693,1781491850000,-404.74,0.00026955,2]
[425097694,1781491850000,-45538.61117692,0.00026966,2]
[425097695,1781491850000,-1659.07205933,0.00026966,2]
[425097691,1781491850000,-1113.37,0.000269,7]
[425097690,1781491850000,-152.0,0.00026675,5]
[425097689,1781491850000,-152.0,0.00026675,3]
[425097687,1781491850000,-193.0,0.00026555,2]
[425097692,1781491850000,-1305.20462618,0.000269,2]
[425097688,1781491850000,-3366.35,0.00026667,3]
[425097686,1781491850000,-260.4103811,0.00026526,2]
[425097685,1781491850000,-470.21437661,0.00026526,2]
[425097684,1781491850000,-5528.0,0.000265,5]
[425097680,1781491850000,-293.2874064,0.00026397,2]
[425097683,1781491850000,-1266.61,0.000265,14]
[425097682,1781491850000,-27998.78947094,0.000264,2]
[425097681,1781491850000,-340.93094204,0.00026397,2]
[425097679,1781491850000,-551.0,0.00026302,10]
[425097678,1781491850000,-961.7,0.00026296,2]
[425097677,1781491850000,-152.0,0.00026241,6]
[425097676,1781491850000,-1113.37,0.000262,7]
[425097700,1781491914000,-662.14357056,0.00011996,2]
[425097702,1781491934000,-662.14357056,0.00011996,2]
[425097705,1781491953000,-46789.8507824,0.00011996,2]
[425097707,1781491975000,-46789.8507824,0.00011996,2]
[425097708,1781491977000,161.92,0.00030136,120]
[425097725,1781492498000,1458.0,0.000265,120]
[425097724,1781492498000,1458.0,0.000265,120]
[425097727,1781492499000,1458.0,0.000265,120]
[425097726,1781492499000,1458.0,0.000265,120]
[425097729,1781492500000,1458.0,0.000265,120]
[425097728,1781492500000,1458.0,0.000265,120]
[425097730,1781492501000,1458.0,0.000265,120]
[425097731,1781492501000,1458.0,0.000265,120]
[425097732,1781492501000,1458.0,0.000265,120]
[425097733,1781492502000,1461.156,0.000265,120]
[425097741,1781492967000,-500.0,0.000103,2]
[425097742,1781492967000,-357.11,0.00010958,2]
[425097743,1781492967000,-166.66,0.00010959,2]
[425097744,1781492967000,-1238.05,0.00011003,2]
[425097745,1781492967000,-1809.95,0.00011008,2]
[425097746,1781492967000,-200.0,0.00011031,2]
[425097748,1781492967000,-150.0,0.00011038,2]
[425097747,1781492967000,-209.82,0.00011036,2]
[425097750,1781492967000,-315.70891182,0.00011039,2]
[425097751,1781492967000,-500.0,0.00011039,2]
[425097752,1781492967000,-500.0,0.00011039,2]
[425097753,1781492967000,-500.0,0.00011039,2]
[425097754,1781492967000,-500.0,0.00011039,2]
[425097755,1781492967000,-400.13519595,0.00011039,2]
[425097756,1781492967000,-443.60022451,0.00011039,2]
[425097749,1781492967000,-604.40147324,0.00011039,2]
[425097781,1781493032000,-471.07668761,0.00011039,2]
[425097782,1781493032000,-28.92331239,0.00011039,2]
[425097784,1781493032000,-310.29155083,0.00011039,2]
[425097783,1781493032000,-500.0,0.00011039,2]
[425097786,1781493032000,-500.0,0.00011039,2]
[425097789,1781493032000,-500.0,0.00011039,2]
[425097785,1781493032000,-189.70844917,0.00011039,2]
[425097787,1781493032000,-118.41021607,0.00011039,2]
[425097793,1781493032000,-500.0,0.00011039,2]
[425097790,1781493032000,-500.0,0.00011039,2]
[425097780,1781493032000,-500.0,0.00011039,2]
[425097791,1781493032000,-500.0,0.00011039,2]
[425097797,1781493032000,-500.0,0.00011039,2]
[425097792,1781493032000,-500.0,0.00011039,2]
[425097796,1781493032000,-500.0,0.00011039,2]
[425097794,1781493032000,-500.0,0.00011039,2]
[425097795,1781493032000,-500.0,0.00011039,2]
[425097788,1781493032000,-381.58978393,0.00011039,2]
[425097759,1781493032000,-500.0,0.00011039,2]
[425097775,1781493032000,-500.0,0.00011039,2]
[425097777,1781493032000,-500.0,0.00011039,2]
[425097760,1781493032000,-500.0,0.00011039,2]
[425097758,1781493032000,-113.33853775,0.00011039,2]
[425097761,1781493032000,-500.0,0.00011039,2]
[425097762,1781493032000,-500.0,0.00011039,2]
[425097763,1781493032000,-500.0,0.00011039,2]
[425097764,1781493032000,-212.59784735,0.00011039,2]
[425097802,1781493032000,-500.0,0.00011039,2]
[425097765,1781493032000,-288.09249405,0.00011039,2]
[425097767,1781493032000,-330.73777473,0.00011039,2]
[425097769,1781493032000,-500.0,0.00011039,2]
[425097768,1781493032000,-500.0,0.00011039,2]
[425097772,1781493032000,-500.0,0.00011039,2]
[425097771,1781493032000,-500.0,0.00011039,2]
[425097770,1781493032000,-500.0,0.00011039,2]
[425097773,1781493032000,-500.0,0.00011039,2]
[425097774,1781493032000,-500.0,0.00011039,2]
[425097776,1781493032000,-500.0,0.00011039,2]
[425097778,1781493032000,-360.46588942,0.00011039,2]
[425097798,1781493032000,-500.0,0.00011039,2]
[425097766,1781493032000,-169.26222527,0.00011039,2]
[425097799,1781493032000,-500.0,0.00011039,2]
[425097824,1781493032000,-566.74873908,0.00011049,2]
[425097825,1781493032000,-500.0,0.00011049,2]
[425097826,1781493032000,-559.12959402,0.00011049,2]
[425097829,1781493032000,-32527.1981104,0.00011051,2]
[425097827,1781493032000,-500.0,0.00011049,2]
[425097830,1781493032000,-65633.32969743,0.00011051,2]
[425097834,1781493032000,-7204.93858751,0.00011099,2]
[425097832,1781493032000,-5489.3975139,0.00011051,2]
[425097815,1781493032000,-500.0,0.00011039,2]
[425097828,1781493032000,-500.0,0.0001105,2]
[425097831,1781493032000,-110114.55467827,0.00011051,2]
[425097835,1781493032000,-4578.58,0.00011103,2]
[425097836,1781493032000,-1111.1,0.00011106,2]
[425097837,1781493032000,-150.0,0.00011117,2]
[425097839,1781493032000,-166.66,0.00011192,2]
[425097838,1781493032000,-163.69,0.00011191,2]
[425097840,1781493032000,-368.48302936,0.00011193,2]
[425097800,1781493032000,-500.0,0.00011039,2]
[425097833,1781493032000,-166.66,0.00011075,2]
[425097822,1781493032000,-257.79550181,0.00011049,2]
[425097779,1781493032000,-139.53411058,0.00011039,2]
[425097817,1781493032000,-300.0,0.0001104,2]
[425097801,1781493032000,-500.0,0.00011039,2]
[425097819,1781493032000,-150.0,0.0001104,2]
[425097813,1781493032000,-500.0,0.00011039,2]
[425097803,1781493032000,-500.0,0.00011039,2]
[425097812,1781493032000,-249.87854277,0.00011039,2]
[425097806,1781493032000,-500.0,0.00011039,2]
[425097805,1781493032000,-500.0,0.00011039,2]
[425097807,1781493032000,-500.0,0.00011039,2]
[425097810,1781493032000,-500.0,0.00011039,2]
[425097804,1781493032000,-287.97573465,0.00011039,2]
[425097808,1781493032000,-500.0,0.00011039,2]
[425097811,1781493032000,-500.0,0.00011039,2]
[425097814,1781493032000,-500.0,0.00011039,2]
[425097818,1781493032000,-250.0,0.0001104,2]
[425097821,1781493032000,-500.0,0.00011049,2]
[425097823,1781493032000,-500.0,0.00011049,2]
[425097820,1781493032000,-500.0,0.00011049,2]
[425097816,1781493032000,-249.48620514,0.00011039,2]
[425097809,1781493032000,-500.0,0.00011039,2]
[425097855,1781493033000,-863.99,0.00011476,2]
[425097852,1781493033000,-166.66,0.00011425,2]
[425097850,1781493033000,-165.11,0.00011394,2]
[425097851,1781493033000,-7204.93858745,0.00011411,2]
[425097854,1781493033000,-586.44,0.00011471,2]
[425097849,1781493033000,-590.0,0.00011363,2]
[425097845,1781493033000,-405.45908692,0.00011196,2]
[425097848,1781493033000,-150.0,0.00011337,2]
[425097844,1781493033000,-564.28235634,0.00011196,2]
[425097842,1781493033000,-863.99,0.00011196,2]
[425097841,1781493033000,-487.55796059,0.00011194,2]
[425097843,1781493033000,-170.05,0.00011196,2]
[425097847,1781493033000,-166.66,0.00011308,2]
[425097846,1781493033000,-150.0,0.00011227,2]
[425097858,1781493033000,-150.0,0.00011557,2]
[425097853,1781493033000,-150.0,0.00011447,2]
[425097857,1781493033000,-166.66,0.00011541,2]
[425097856,1781493033000,-8626.14,0.0001154,2]
[425097873,1781493033000,-491.3936886,0.00011996,2]
[425097872,1781493033000,-2642.63241699,0.00011996,2]
[425097870,1781493033000,-1599.95623534,0.00011996,2]
[425097869,1781493033000,-461.76062931,0.00011996,2]
[425097865,1781493033000,-1096.55146256,0.00011921,2]
[425097866,1781493033000,-12467.23,0.00011953,2]
[425097861,1781493033000,-4462.96,0.00011755,2]
[425097871,1781493033000,-985.20374786,0.00011996,2]
[425097862,1781493033000,-863.99,0.00011755,2]
[425097864,1781493033000,-7204.93858745,0.00011847,2]
[425097860,1781493033000,-150.0,0.0001167,2]
[425097859,1781493033000,-150.0,0.00011667,2]
[425097868,1781493033000,-8838.79429138,0.00011996,2]
[425097863,1781493033000,-1852.42,0.00011772,2]
[425097867,1781493033000,-11090.00749404,0.00011995,2]
[425097889,1781493038000,-7204.93858745,0.00012283,2]
[425097900,1781493038000,-1266.36153627,0.00013,2]
[425097891,1781493038000,-160.93757209,0.00012311,2]
[425097892,1781493038000,-863.99,0.00012315,2]
[425097894,1781493038000,-1096.55146252,0.00012347,2]
[425097897,1781493038000,-7204.93858745,0.00012719,2]
[425097896,1781493038000,-1809.95,0.00012384,2]
[425097893,1781493038000,-165.11,0.00012335,2]
[425097898,1781493038000,-1096.55146252,0.00012772,2]
[425097890,1781493038000,-8208.98727323,0.000123,2]
[425097895,1781493038000,-5954.61,0.00012365,2]
[425097888,1781493038000,-645.31897345,0.00012143,2]
[425097884,1781493038000,-250.0,0.00012109,2]
[425097883,1781493038000,-255.0,0.00012087,2]
[425097881,1781493038000,-1920.01,0.00012066,2]
[425097880,1781493038000,-863.99,0.00012035,2]
[425097882,1781493038000,-1174.59,0.00012072,2]
[425097885,1781493038000,-300.0,0.00012143,2]
[425097886,1781493038000,-300.46017444,0.00012143,2]
[425097879,1781493038000,-59052.4026382,0.00011996,2]
[425097878,1781493038000,-1599.494872,0.00011996,2]
[425097877,1781493038000,-2446.37758397,0.00011996,2]
[425097876,1781493038000,-650.19549593,0.00011996,2]
[425097899,1781493038000,-586.44,0.00012905,2]
[425097887,1781493038000,-250.0,0.00012143,2]
[425097902,1781493038000,-5428.32543531,0.0001305,2]
[425097901,1781493038000,-15812.93682748,0.00013,5]
[425097915,1781493038000,-150.0,0.00013488,2]
[425097938,1781493038000,-500.0,0.00013699,2]
[425097936,1781493038000,-437.63162923,0.00013699,2]
[425097934,1781493038000,-500.0,0.00013699,2]
[425097932,1781493038000,-2500.0,0.00013699,2]
[425097930,1781493038000,-200.0,0.00013699,2]
[425097918,1781493038000,-150.0,0.00013488,2]
[425097921,1781493038000,-2288.20370207,0.000135,2]
[425097904,1781493038000,-1096.55146252,0.00013198,2]
[425097919,1781493038000,-1000.0,0.000135,2]
[425097917,1781493038000,-150.03634183,0.00013488,2]
[425097927,1781493038000,-148.29865447,0.00013623,2]
[425097923,1781493038000,-7204.93858745,0.00013592,2]
[425097925,1781493038000,-948.25280805,0.00013623,2]
[425097910,1781493038000,-150.0,0.00013488,2]
[425097907,1781493038000,-2000.0,0.00013388,2]
[425097905,1781493038000,-433.0,0.00013235,2]
[425097914,1781493038000,-150.18186273,0.00013488,2]
[425097916,1781493038000,-168.89341647,0.00013488,2]
[425097906,1781493038000,-165.11,0.00013275,2]